[Event "Croatian 1A League 2022"]
[Site "Porec"]
[Date "2022.09.28"]
[Round "5.25"]
[White "Fedorchuk, Sergey A."]
[Black "Motylev, Alexander"]
[Result "1/2-1/2"]
[ECO "C67"]
[WhiteElo "2617"]
[BlackElo "2635"]
[Annotator "TA"]
[PlyCount "38"]
[EventDate "2022.09.24"]
[EventType "team-tourn"]
[EventCountry "CRO"]
[SourceTitle "playchess.com"]
[Source "ChessBase"]
[SourceQuality "1"]
[TimeControl "40/5400+30:1800+30"]

{[%evp 12,25,20,20,35,32,39,32,32,30,27,24,35,32,37,43]} 1. e4 {[%emt 0:00:04]} e5 {[%emt 0:00:08]} 2. Nf3 {[%emt 0:00:08]} Nc6 {[%emt 0:00:03]} 3. Bb5 {[%emt 0:00:23]} Nf6 {[%emt 0:00:06]} 4. O-O {[%emt 0:01:26]} Nxe4 {[%emt 0:00:06]} 5. Re1 {[%emt 0:09:45]} Nd6 {[%emt 0:01:04]} 6. Nxe5 {[%emt 0:00:09]} Be7 {[%emt 0:00:14]} 7. Bf1 {[%emt 0:00:13]} Nf5 {[%emt 0:00:19] C67: Ruy Lopez: Berlin Defence: 4 0-0 Nxe4.} 8. Nf3 {[%emt 0:01:34]} O-O {[%emt 0:00:16]} 9. d4 {[%emt 0:00:07]} d5 {[%emt 0:00:05]} 10. c3 {[%emt 0:00:28]} Bd6 {[%emt 0:01:36]} 11. Nbd2 {[%emt 0:01:27]} h6 {[%emt 0:02:16]} 12. Bd3 {[%emt 0:02:34]} Be6 {[%emt 0:07:55]} 13. Nf1 {[%emt 0:00:45] [#]  Weighted Error Value: White=0.02 (flawless) /Black=0.05 (flawless)} {Predecessor:} Qf6 $146 14. Bc2 Rfe8 15. Qd3 g6 16. Bd2 a6 17. Re2 Bd7 18. Rae1 Rxe2 19. Qxe2 Re8 {½-½ (97) Swiercz,D (2645)-Baryshpolets,A (2578) New York 2017} 1/2-1/2

[Event "Croatian 1A League 2022"]
[Site "Porec"]
[Date "2022.09.28"]
[Round "5.26"]
[White "Postny, Evgeny"]
[Black "Bernadskiy, Vitaliy"]
[Result "1/2-1/2"]
[ECO "E14"]
[WhiteElo "2573"]
[BlackElo "2558"]
[Annotator "TA"]
[PlyCount "36"]
[EventDate "2022.09.24"]
[EventType "team-tourn"]
[EventCountry "CRO"]
[SourceTitle "playchess.com"]
[Source "ChessBase"]
[SourceQuality "1"]
[TimeControl "40/5400+30:1800+30"]

{[%evp 17,23,0,0,-1,0,0,0,4]} 1. d4 {[%emt 0:00:34]} Nf6 {[%emt 0:00:04]} 2. c4 {[%emt 0:00:15]} e6 {[%emt 0:00:03]} 3. Nf3 {[%emt 0:00:12]} d5 {[%emt 0:00:11]} 4. Nc3 {[%emt 0:00:22]} Nbd7 {[%emt 0:00:15]} 5. e3 {[%emt 0:05:41]} a6 {[%emt 0:09:07]} 6. b3 {[%emt 0:02:04]} b6 {[%emt 0:03:58]} 7. Bd3 {[%emt 0:00:45]} Bb7 {[%emt 0:01:00]} 8. O-O {[%emt 0:03:27]} Bd6 {[%emt 0:00:42]} 9. Bb2 {[%emt 0:00:29]} O-O {[%emt 0:00:26] The position is equal.} 10. a3 {[%emt 0:15:06] E14: Queen's Indian: Classical Variation (4 e3).} c5 {[%emt 0:11:46]} 11. cxd5 {[%emt 0:04:13]} exd5 {[%emt 0:00:39]} 12. Ne2 {[%emt 0:02:32] [#] Not much happened in this game.  Weighted Error Value: White=0.00 (flawless) /Black=0.01 (flawless)} {Predecessor:} c4 $146 13. bxc4 dxc4 14. Bxc4 Bxf3 15. gxf3 Bxh2+ 16. Kg2 Bb8 17. Rh1 b5 18. Bb3 Re8 {1-0 (28) Lein,A (2505)-Regan,K (2430) Pasadena 1978} 1/2-1/2

[Event "Croatian 1A League 2022"]
[Site "Porec"]
[Date "2022.09.28"]
[Round "5.27"]
[White "Lalic, Bogdan"]
[Black "Bosiocic, Marin"]
[Result "1/2-1/2"]
[ECO "A20"]
[WhiteElo "2393"]
[BlackElo "2548"]
[Annotator "TA"]
[PlyCount "84"]
[EventDate "2022.09.24"]
[EventType "team-tourn"]
[EventCountry "CRO"]
[SourceTitle "playchess.com"]
[Source "ChessBase"]
[SourceQuality "1"]
[TimeControl "40/5400+30:1800+30"]

{[%evp 9,84,12,16,7,27,4,30,25,39,33,45,35,37,34,31,22,65,37,58,31,47,15,27,25,18,15,21,15,30,29,26,29,27,10,27,20,29,9,21,20,15,10,14,14,10,7,8,11,4,7,7,8,8,3,4,10,10,0,6,0,0,0,0,0,3,0,0,0,0,0,4,0,13,0,7,14,14]} 1. c4 {[%emt 0:01:40]} e5 {[%emt 0:00:09][%cal Be7e5,Be5e4][%mdl 32]} 2. g3 {[%emt 0:00:17]} c6 {[%emt 0:00:09]} 3. Nf3 {[%emt 0:00:37]} e4 {[%emt 0:00:11]} 4. Nd4 {[%emt 0:00:06]} d5 {[%emt 0:00:11]} 5. d3 {[%emt 0:00:23]} Nf6 {[%emt 0:01:33][%cal Bg8f6,Bf6d5,Bd5b4,Bb4a6,Ba6c5][%mdl 32]} 6. Bg2 {[%emt 0:01:28] A20: English Opening: 1...e5.} exd3 {[%emt 0:06:13]} (6... Bc5 $5 {[%cal Rc5d4]} 7. Nb3 Bb4+ 8. Bd2 Bxd2+ 9. Qxd2 (9. N1xd2 exd3 10. O-O Bg4 $11) 9... exd3 $11) 7. cxd5 {[%emt 0:10:16]} Nxd5 {[%emt 0:12:43]} 8. Qxd3 {[%emt 0:00:07] White has an edge.} Nb4 {[%emt 0:01:03]} 9. Qe4+ {[%emt 0:01:32] [#]} Be7 $146 {[%emt 0:00:35][%cal Od8d4] [#] Hoping for ...Qxd4!} ({Predecessor:} 9... Qe7 10. Nc3 Qxe4 11. Bxe4 Nd7 12. a3 Na6 13. Bf4 Nf6 14. Bg2 Bd7 15. O-O Rc8 {½-½ (65) Marjanovic,A (2298)-Shagbazyan,T (2429) Bratislava 2019}) 10. O-O {[%emt 0:01:46]} O-O {[%emt 0:01:12]} 11. a3 {[%emt 0:02:54]} N4a6 {[%emt 0:09:41]} 12. e3 {[%emt 0:01:50]} Nc5 {[%emt 0:02:27]} 13. Qc2 {[%emt 0:00:10]} a5 {[%emt 0:02:03]} 14. b3 {[%emt 0:03:05]} Ne6 {[%emt 0:06:53]} 15. Bb2 {[%emt 0:12:12]} Nxd4 {[%emt 0:01:13]} 16. Bxd4 {[%emt 0:00:04]} Bf6 {[%emt 0:01:34]} 17. Rd1 {[%emt 0:01:06]} Bg4 {[%emt 0:05:31]} 18. Rd2 {[%emt 0:00:35]} Nd7 {[%emt 0:00:36]} 19. Nc3 {[%emt 0:02:18]} Qe7 {[%emt 0:02:09]} 20. h3 {[%emt 0:01:52]} Be6 {[%emt 0:01:56]} 21. Ne4 {[%emt 0:08:33]} Bxd4 {[%emt 0:00:55]} 22. Rxd4 {[%emt 0:02:26]} Bd5 {[%emt 0:01:01]} 23. Qb2 {[%emt 0:12:30]} Ne5 {[%emt 0:01:39] The position is equal.} 24. Rad1 {[%emt 0:04:10]} Rfe8 {[%emt 0:01:23]} 25. b4 {[%emt 0:05:38]} axb4 {[%emt 0:01:45]} 26. axb4 {[%emt 0:00:28]} b5 {[%emt 0:03:41]} 27. Qc3 {[%emt 0:01:45]} h6 {[%emt 0:03:53] [#]} 28. Nd6 $1 {[%emt 0:06:35]} Qxd6 {[%emt 0:00:20]} 29. e4 {[%emt 0:00:01]} Rec8 {[%emt 0:02:40]} 30. exd5 {[%emt 0:00:07]} c5 $132 {[%emt 0:00:23][%mdl 2048] Black is not keeping still} 31. Re4 {[%emt 0:04:26]} Nd7 {[%emt 0:00:26]} 32. bxc5 {[%emt 0:00:13]} ({Don't play} 32. Rg4 Nf6 33. Rh4 c4 $17) 32... Rxc5 {[%emt 0:02:50]} 33. Qb2 {[%emt 0:03:30]} Rac8 {[%emt 0:01:33]} 34. Rb4 {[%emt 0:03:58]} Rc2 {[%emt 0:02:28]} 35. Qd4 {[%emt 0:00:08]} R2c4 {[%emt 0:01:14]} 36. Rxc4 {[%emt 0:00:06]} Rxc4 {[%emt 0:00:04]} 37. Qe3 {[%emt 0:00:59]} b4 {[%emt 0:03:10]} 38. Qe8+ {[%emt 0:03:01]} Nf8 {[%emt 0:00:19]} 39. Qb5 {[%emt 0:01:51]} Rc2 {[%emt 0:04:50]} 40. Be4 {[%emt 0:00:00]} Ra2 {[%emt 0:00:00]} 41. Qc6 {[%emt 0:01:50]} Qe5 {[%emt 0:11:14]} 42. d6 {[%emt 0:05:15] And now d7 would win.} Qb2 {[%emt 0:22:59] Weighted Error Value: White=0.04 (flawless) /Black=0.05 (flawless)} 1/2-1/2

[Event "Croatian 1A League 2022"]
[Site "Porec"]
[Date "2022.09.28"]
[Round "5.28"]
[White "Antunac, Goran"]
[Black "Zaja, Ivan"]
[Result "1/2-1/2"]
[ECO "E15"]
[WhiteElo "2337"]
[BlackElo "2417"]
[Annotator "TA"]
[PlyCount "44"]
[EventDate "2022.09.24"]
[EventType "team-tourn"]
[EventCountry "CRO"]
[SourceTitle "playchess.com"]
[Source "ChessBase"]
[SourceQuality "1"]
[TimeControl "40/5400+30:1800+30"]

{[%evp 11,44,3,27,23,25,22,26,18,18,14,26,11,14,10,24,17,40,43,53,52,48,50,132,96,136,134,135,144,156,147,134,18,114,104,120]} 1. d4 {[%emt 0:00:05]} Nf6 {[%emt 0:00:27]} 2. Nf3 {[%emt 0:00:02]} e6 {[%emt 0:00:28]} 3. c4 {[%emt 0:00:12]} Bb4+ {[%emt 0:02:24]} 4. Nbd2 {[%emt 0:01:16]} b6 {[%emt 0:00:52]} 5. g3 {[%emt 0:03:34]} Ba6 {[%emt 0:09:28]} 6. Qc2 {[%emt 0:00:56]} c5 {[%emt 0:02:47]} 7. Bg2 {[%emt 0:08:21] E15: Queen's Indian: 4 g3 sidelines, 4 g3 Ba6 and 4 g3 Bb7 early deviations.} Nc6 {[%emt 0:03:06]} 8. dxc5 {[%emt 0:02:15]} Bxc5 {[%emt 0:02:30]} 9. O-O {[%emt 0:00:32] White has an edge.} O-O {[%emt 0:01:26]} 10. a3 {[%emt 0:08:39] [#] Strongly threatening b4.} Bb7 {[%emt 0:14:51]} 11. b4 {[%emt 0:01:28]} Be7 {[%emt 0:00:17]} 12. Bb2 {[%emt 0:05:28]} Rc8 {[%emt 0:04:13]} 13. Rac1 {[%emt 0:05:20]} h6 {[%emt 0:04:11]} 14. Rfd1 {[%emt 0:01:49]} a5 {[%emt 0:05:52]} 15. b5 {[%emt 0:05:46]} Nb8 {[%emt 0:05:58]} 16. e4 {[%emt 0:10:49][%cal Be2e4,Be4e5][%mdl 32] [#]} Bc5 $146 {[%emt 0:03:08]} (16... d6 $14) ({Predecessor:} 16... d6 17. e5 dxe5 18. Nb3 Nfd7 19. Bxe5 Bxf3 20. Bxf3 Nxe5 21. Rxd8 Nxf3+ 22. Kg2 Rfxd8 23. Kxf3 Bxa3 {½-½ (41) Zaichik,G (2480)-Mochalov,E (2420) Moscow 1983}) 17. Ne5 {[%emt 0:04:45]} Qc7 {[%emt 0:09:44] [#]} 18. Nd3 $1 {[%emt 0:03:07]} Be7 {[%emt 0:00:16]} 19. e5 {[%emt 0:01:31]} Ne8 {[%emt 0:00:42]} 20. Bxb7 {[%emt 0:03:41]} Qxb7 {[%emt 0:00:13]} 21. Nf4 {[%emt 0:00:13]} (21. a4 $16) 21... d5 {[%emt 0:05:09]} (21... d6 $1 $11 {keeps the balance.}) 22. Qd3 $16 {[%emt 0:07:02][%cal Rc4d5] White is more active.} Nc7 {[%emt 0:03:13] Weighted Error Value: White=0.14 (very precise) /Black=0.23 (precise)} 1/2-1/2

[Event "Croatian 1A League 2022"]
[Site "Porec"]
[Date "2022.09.28"]
[Round "5.29"]
[White "Kovacevic, Blazimir"]
[Black "Fucak, Emilio Milko"]
[Result "1-0"]
[ECO "E18"]
[WhiteElo "2405"]
[BlackElo "2187"]
[Annotator "TA"]
[PlyCount "61"]
[EventDate "2022.09.24"]
[EventType "team-tourn"]
[EventCountry "CRO"]
[SourceTitle "playchess.com"]
[Source "ChessBase"]
[SourceQuality "1"]
[TimeControl "40/5400+30:1800+30"]

{[%evp 16,61,20,21,20,10,17,15,22,16,60,22,32,30,30,30,31,33,42,44,44,43,47,47,50,27,46,41,37,39,35,33,55,6,38,10,41,41,197,199,194,136,175,185,877,416,941,909]} 1. Nf3 {[%emt 0:00:06]} e6 {[%emt 0:00:16]} 2. g3 {[%emt 0:00:26]} b6 {[%emt 0:00:32]} 3. Bg2 {[%emt 0:00:54]} Bb7 {[%emt 0:00:07]} 4. O-O {[%emt 0:00:04]} Nf6 {[%emt 0:00:38]} 5. c4 {[%emt 0:00:13]} Be7 {[%emt 0:01:32]} 6. d4 {[%emt 0:00:08]} O-O {[%emt 0:00:33]} 7. Nc3 {[%emt 0:00:07]} Ne4 {[%emt 0:00:26]} 8. Bd2 {[%emt 0:00:08]} f5 {[%emt 0:03:15]} 9. Qc2 {[%emt 0:04:05]} Nxc3 {[%emt 0:00:39] E18: Queen's Indian: Old Main Line (4 g3 Bb7 5 Bg2 Be7 6 0-0 0-0 7 Nc3).} (9... d5 {looks sharper.} 10. Bf4 g5 11. Be3 f4) 10. Bxc3 {[%emt 0:00:53][%cal Od4d5]} Be4 {[%emt 0:00:24] Against d5} 11. Qa4 {[%emt 0:06:36]} Bf6 {[%emt 0:03:54] [#] The position is equal.} 12. Ne1 $146 {[%emt 0:12:17]} ({Predecessor:} 12. Rfd1 d6 13. Rac1 Qd7 14. Qb3 Nc6 15. Ne1 Bxg2 16. Nxg2 a5 17. Qb5 Qe8 18. d5 Bxc3 19. Rxc3 {½-½ (28) Hera,I (2544)-Gulko,B (2571) Lubbock 2007}) 12... c5 {[%emt 0:06:58]} 13. Rd1 {[%emt 0:00:00][%cal Ba1d1,Bd1d4,Bd4d2][%mdl 32]} cxd4 {[%emt 0:12:56]} 14. Bxd4 {[%emt 0:00:00]} Bxd4 {[%emt 0:05:45]} 15. Rxd4 {[%emt 0:00:00]} ({Of course not} 15. Bxe4 Bxf2+ 16. Rxf2 fxe4 17. Rxf8+ Qxf8 $11) 15... Nc6 {[%emt 0:02:25]} 16. Rd2 {[%emt 0:00:00]} Bxg2 {[%emt 0:04:38]} 17. Nxg2 {[%emt 0:00:00]} Qc7 {[%emt 0:03:20]} 18. Rfd1 {[%emt 0:00:58]} Rf7 {[%emt 0:00:12]} 19. Qa3 {[%emt 0:08:56]} Re8 {[%emt 0:03:01]} 20. Qe3 {[%emt 0:04:18]} h6 {[%emt 0:01:36]} 21. b3 {[%emt 0:02:54]} Ree7 {[%emt 0:01:23]} 22. Qc3 {[%emt 0:09:55]} g5 {[%emt 0:02:12]} 23. f4 {[%emt 0:04:37]} Rg7 {[%emt 0:01:02] [#] Hoping for ...gxf4.} 24. Rf1 {[%emt 0:03:06]} (24. e3 $14) 24... a5 {[%emt 0:01:57]} 25. Qf3 {[%emt 0:01:13]} Nd8 {[%emt 0:07:13]} 26. e4 {[%emt 0:02:54]} Nf7 $2 {[%emt 0:07:25] Loses the game.} (26... fxe4 $14 27. Qxe4 Qc5+ 28. Rff2 Ref7) 27. exf5 $18 {[%emt 0:03:03]} Qc5+ {[%emt 0:04:19]} 28. Qe3 {[%emt 0:05:47]} ({Better is} 28. Kh1 $18 Qxf5 29. Ne3) 28... Qxf5 {[%emt 0:06:28]} 29. Qxb6 {[%emt 0:00:41] [#] Threatens to win with Ne3.} e5 $2 {[%emt 0:00:50]} (29... gxf4 30. Qb8+ (30. Nxf4 Ng5 $18) (30. gxf4 h5 $16) (30. Rxf4 Qe5 $16) 30... Kh7) 30. Ne3 {[%emt 0:05:30]} (30. Qb8+ $142 Kh7 31. Ne3) 30... Qe4 {[%emt 0:02:44]} (30... Qe6 $142 31. Qxe6 Rxe6) 31. Nd5 {[%emt 0:07:01] Weighted Error Value: White=0.32/Black=0.29 (precise)} 1-0

[Event "Croatian 1A League 2022"]
[Site "Porec"]
[Date "2022.09.29"]
[Round "6.1"]
[White "Saric, Ivan"]
[Black "Motylev, Alexander"]
[Result "1/2-1/2"]
[ECO "C54"]
[WhiteElo "2668"]
[BlackElo "2635"]
[Annotator "TA"]
[PlyCount "59"]
[EventDate "2022.09.24"]
[EventType "team-tourn"]
[EventCountry "CRO"]
[SourceTitle "playchess.com"]
[Source "ChessBase"]
[SourceQuality "1"]
[TimeControl "40/5400+30:1800+30"]

{[%evp 13,59,6,25,0,3,0,6,0,0,-20,0,0,0,-6,-18,0,0,0,29,-19,-8,-8,-8,-57,-54,-260,-253,-257,-249,-252,-26,-37,-5,-5,-5,-5,-5,-5,-5,-5,-5,-5,-5,-17,-26,-26,-12,-25]} 1. e4 {[%emt 0:00:03]} e5 {[%emt 0:00:06]} 2. Nf3 {[%emt 0:00:03]} Nc6 {[%emt 0:00:06]} 3. Bc4 {[%emt 0:01:27]} Nf6 {[%emt 0:00:24]} 4. d3 {[%emt 0:00:04]} Bc5 {[%emt 0:00:22]} 5. O-O {[%emt 0:00:33]} d6 {[%emt 0:00:27]} 6. c3 {[%emt 0:00:05]} Bb6 {[%emt 0:00:44]} 7. Nbd2 {[%emt 0:01:42]} O-O {[%emt 0:01:18]} 8. h3 {[%emt 0:01:47] C54: Giuoco Piano: 4 c3 Nf6, main lines with 5 d4 and 5 d3.} h6 {[%emt 0:02:51]} 9. Re1 {[%emt 0:00:13]} Ne7 {[%emt 0:00:45]} 10. d4 {[%emt 0:00:32]} Nc6 {[%emt 0:00:45][%cal Re5d4]} 11. a4 {[%emt 0:01:26]} a5 {[%emt 0:00:10][%cal Re5d4]} 12. Ra3 {[%emt 0:04:02]} Re8 {[%emt 0:08:20][%cal Re5d4]} 13. Ba2 {[%emt 0:02:20]} exd4 {[%emt 0:01:14]} 14. cxd4 {[%emt 0:00:47]} Nxd4 {[%emt 0:00:39] [#]} 15. Nc4 $146 {[%emt 0:05:18]} ({Predecessor:} 15. Nxd4 Bxd4 16. Rd3 Ba7 17. e5 Qe7 18. Rg3 dxe5 19. Nc4 Kf8 20. Bxh6 gxh6 21. Qd2 {1-0 (38) Grandelius,N (2672)-Howell,D (2646) London 2022}) 15... Nc6 {[%emt 0:26:01]} 16. e5 {[%emt 0:12:37]} (16. Nxb6 $142 cxb6 17. Bf4) 16... dxe5 $11 {[%emt 0:05:14]} 17. Rd3 {[%emt 0:00:29]} Qe7 {[%emt 0:04:25]} 18. Nfxe5 {[%emt 0:04:48]} (18. Ncxe5 $11 Nxe5 19. Rxe5) 18... Bf5 $15 {[%emt 0:13:01]} (18... Nxe5 19. Rxe5 Be6 20. Nxb6 cxb6 21. Bxe6 $14) 19. Rg3 {[%emt 0:09:20]} (19. Nxb6 $15 Nxe5 20. Rde3 cxb6 21. Rxe5 Qxe5 22. Rxe5 Rxe5 23. Be3) 19... Rad8 $19 {[%emt 0:03:33]} ({Resist} 19... Nxe5 20. Rxe5 Qd8 21. Rxe8+ (21. Qxd8 Raxd8 22. Bxh6 Nh5 $11) 21... Nxe8 22. Qh5 $16 (22. Qf3 Be4 $14)) 20. Qf3 {[%emt 0:05:19]} Nd4 {[%emt 0:02:57]} ({Much less strong is} 20... Nxe5 21. Rxe5 Be6 22. Nxb6 $18) 21. Qe3 {[%emt 0:13:03][%cal Og3g7] [#] Rxg7+! is the strong threat.} Nh5 {[%emt 0:10:17]} (21... Ne4 $19 22. Kh2 Qe6) 22. Nxb6 $11 {[%emt 0:00:46]} Qxe5 {[%emt 0:03:13]} (22... Be6 {keeps more tension.} 23. Nbc4 Nf5 24. Qc3 Nhxg3 25. fxg3 Qb4) 23. Qxe5 {[%emt 0:04:08] Chess con chili.} Rxe5 {[%emt 0:00:23]} 24. Rxe5 {[%emt 0:00:05]} Nxg3 {[%emt 0:00:58]} 25. fxg3 {[%emt 0:00:10] [#] Hoping for Nd5.} cxb6 {[%emt 0:00:42]} 26. Be3 {[%emt 0:08:27] And now Bxd4 would win.} Be6 {[%emt 0:03:32]} 27. Bxe6 {[%emt 0:00:22]} fxe6 {[%emt 0:00:34]} 28. Re4 {[%emt 0:01:51]} Nc6 {[%emt 0:01:38] Threatens to win with ...Rd1+.} 29. Bxb6 {[%emt 0:03:13]} Rd2 {[%emt 0:00:35]} 30. b3 $1 {[%emt 0:03:31] Weighted Error Value: White=0.27 (precise) /Black=0.17 (very precise)} 1/2-1/2

[Event "Croatian 1A League 2022"]
[Site "Porec"]
[Date "2022.09.29"]
[Round "6.2"]
[White "Postny, Evgeny"]
[Black "Banusz, Tamas"]
[Result "1-0"]
[ECO "D50"]
[WhiteElo "2573"]
[BlackElo "2622"]
[Annotator "TA"]
[PlyCount "71"]
[EventDate "2022.09.24"]
[EventType "team-tourn"]
[EventCountry "CRO"]
[SourceTitle "playchess.com"]
[Source "ChessBase"]
[SourceQuality "1"]
[TimeControl "40/5400+30:1800+30"]

{[%evp 9,71,13,27,32,29,18,20,16,41,14,23,0,41,49,58,60,66,48,72,72,87,87,94,95,126,126,120,129,110,83,83,33,23,16,0,0,0,36,130,129,129,129,129,125,166,145,228,188,322,309,304,146,145,152,151,137,137,137,406,391,382,376,337,327]} 1. d4 {[%emt 0:00:04]} d5 {[%emt 0:00:05]} 2. c4 {[%emt 0:00:29]} e6 {[%emt 0:00:06]} 3. Nc3 {[%emt 0:00:26]} Nf6 {[%emt 0:00:08]} 4. Bg5 {[%emt 0:00:27]} dxc4 {[%emt 0:00:11]} 5. e3 {[%emt 0:03:14]} a6 {[%emt 0:00:24]} 6. Bxc4 {[%emt 0:00:49] D50: Queen's Gambit Declined: Dutch-Peruvian Gambit.} c5 {[%emt 0:00:16]} 7. Nf3 {[%emt 0:06:18]} b5 {[%emt 0:02:13]} 8. Bd3 {[%emt 0:00:59] The position is equal.} Bb7 {[%emt 0:00:45]} 9. Bxf6 {[%emt 0:05:43]} gxf6 {[%emt 0:05:54] [#]} 10. Be4 $146 {[%emt 0:00:24]} ({Predecessor:} 10. O-O Nc6 11. Rc1 cxd4 12. Nxd4 Nxd4 13. exd4 Be7 14. Qh5 Rg8 15. d5 b4 16. Be4 {½-½ (31) Dimitrov,R (2487)-Maerevoet,S (2375) Cappelle la Grande 2022}) 10... Bxe4 {[%emt 0:01:46]} 11. Nxe4 {[%emt 0:00:05]} cxd4 {[%emt 0:02:36]} 12. Nxd4 {[%emt 0:04:20] Black must now prevent Qh5.} (12. Qxd4 Qxd4 13. Nxd4 Nd7 $11) 12... f5 {[%emt 0:08:35]} 13. Ng3 {[%emt 0:03:06]} Bb4+ {[%emt 0:04:22]} 14. Ke2 {[%emt 0:03:22]} Bc5 {[%emt 0:10:44]} 15. Qc2 $1 {[%emt 0:07:49]} Bxd4 {[%emt 0:08:29]} 16. Rhd1 {[%emt 0:04:19][%mdl 64] Pin} Nd7 {[%emt 0:00:27]} 17. Rxd4 {[%emt 0:00:27]} Rc8 {[%emt 0:00:52]} 18. Qd2 {[%emt 0:05:16] White is much more active.} Qc7 {[%emt 0:03:28]} 19. Nh5 {[%emt 0:07:41][%cal Od4d7] Prevents Nf6.} Nb6 {[%emt 0:15:31] [#]} 20. Rc1 $1 {[%emt 0:11:36]} Qxc1 $14 {[%emt 0:00:52] [#]} 21. Rd8+ $1 {[%emt 0:00:04]} Rxd8 {[%emt 0:00:04]} 22. Qxc1 {[%emt 0:00:03] aiming for Qc5.} Rc8 {[%emt 0:08:23] Inhibits Qc5.} 23. Qd2 {[%emt 0:02:23] And now Qd4 would win.} Ke7 {[%emt 0:03:48]} (23... Nd7 $1 $14) 24. Qb4+ $16 {[%emt 0:03:23][%mdl 1024] White has strong compensation.} ({Of course not} 24. Qd4 $6 Nd7 $11) 24... Kd7 {[%emt 0:00:03]} 25. Qd4+ {[%emt 0:00:56]} Kc6 {[%emt 0:01:11] [#]} 26. Qg7 $1 {[%emt 0:02:39]} Rhf8 {[%emt 0:01:49]} 27. Nf6 {[%emt 0:01:54]} Nd7 {[%emt 0:05:09]} (27... Nc4 $16) 28. Nxh7 $18 {[%emt 0:01:09]} Rg8 {[%emt 0:00:04]} (28... Rfe8 {keeps fighting.} 29. Nf6 (29. Qxf7 Kd6 $16) 29... Rf8) 29. Qxf7 {[%emt 0:01:11]} Kd6 {[%emt 0:00:15] [#]} 30. Nf6 {[%emt 0:03:24]} (30. g3 $1 $18) 30... Nxf6 $16 {[%emt 0:01:18]} 31. Qxf6 {[%emt 0:00:05] Hoping for g3.} Rxg2 {[%emt 0:00:37] KQ-KRR} 32. Qd4+ {[%emt 0:00:22]} Ke7 {[%emt 0:02:42]} 33. Kf3 {[%emt 0:01:23]} Rxh2 {[%emt 0:06:33][%mdl 8192]} (33... Rg1 $16 {was necessary.} 34. h4 Rh1 35. Qg7+ Kd6) 34. Qg7+ $18 {[%emt 0:00:48]} Ke8 {[%emt 0:01:15]} 35. Qb7 {[%emt 0:01:12][%csl LRa6,LRc8]} Kd8 {[%emt 0:03:35]} 36. Qxa6 {[%emt 0:00:14] Weighted Error Value: White=0.14 (very precise) /Black=0.37} 1-0

[Event "Croatian 1A League 2022"]
[Site "Porec"]
[Date "2022.09.29"]
[Round "6.3"]
[White "Balogh, Csaba"]
[Black "Bosiocic, Marin"]
[Result "1/2-1/2"]
[ECO "B30"]
[WhiteElo "2583"]
[BlackElo "2548"]
[Annotator "TA"]
[PlyCount "36"]
[EventDate "2022.09.24"]
[EventType "team-tourn"]
[EventCountry "CRO"]
[SourceTitle "playchess.com"]
[Source "ChessBase"]
[SourceQuality "1"]
[TimeControl "40/5400+30:1800+30"]

{[%evp 16,36,18,8,18,17,19,10,29,18,27,24,21,19,24,23,31,20,91,56,52,46,86]} 1. e4 {[%emt 0:00:03]} c5 {[%emt 0:01:33]} 2. Nf3 {[%emt 0:00:29]} Nc6 {[%emt 0:00:09]} 3. Bb5 {[%emt 0:00:37]} e6 {[%emt 0:00:08]} 4. O-O {[%emt 0:00:37]} Nge7 {[%emt 0:00:07]} 5. Re1 {[%emt 0:00:28]} a6 {[%emt 0:00:07]} 6. Bf1 {[%emt 0:00:34]} d5 {[%emt 0:00:10]} 7. exd5 {[%emt 0:00:37]} Nxd5 {[%emt 0:00:11]} 8. d4 {[%emt 0:00:15]} Nf6 {[%emt 0:00:15]} 9. Be3 {[%emt 0:00:32]} cxd4 {[%emt 0:00:09] B30: Sicilian: 2...Nc6 3 Bb5, lines without ...g6.} 10. Nxd4 {[%emt 0:00:13]} Bd7 {[%emt 0:00:05]} 11. c4 {[%emt 0:00:39]} Nxd4 {[%emt 0:00:46] The position is equal.} 12. Bxd4 {[%emt 0:05:32] is the legacy move (12.Qxd4).} Bc6 {[%emt 0:00:28]} 13. Nc3 {[%emt 0:00:16]} Be7 {[%emt 0:00:56]} 14. a3 {[%emt 0:02:08]} a5 {[%emt 0:00:40]} 15. Qd3 {[%emt 0:00:28]} O-O {[%emt 0:02:52]} 16. Rad1 {[%emt 0:02:02]} Nd7 {[%emt 0:05:23]} (16... Qc7 $11) 17. Qg3 {[%emt 0:39:39][%csl Gd4][%cal Rg3g7] [#] White is more active.} g6 $146 {[%emt 0:00:32]} ({Predecessor:} 17... Bf6 18. Ne4 Bxe4 19. Rxe4 Nc5 20. Rg4 g6 21. Qf3 Bxd4 22. Rgxd4 Qb6 23. h4 Qxb2 {1-0 (36) Lu,S (2611)-Zhang,F (1911) Wuxi 2016}) 18. Nb5 {[%emt 0:01:38]} Bxb5 {[%emt 0:04:56] Weighted Error Value: White=0.08 (flawless) /Black=0.15 (very precise)} 1/2-1/2